Cogmind - Beta 14 @@@ ROGUE MODE // 2024.09.24 @ 23:19:15 Player: Destravous Result: Destroyed by 5E-BOQ(R) with Subdweller Machine Gun Performance ------------- Evolutions (0) 0 Regions Visited (3) 600 Robots Destroyed (14) 70 Value Destroyed (296) 296 Prototype IDs (0) 0 Alien Tech Used (0) 0 Bonus (0) 0 TOTAL SCORE: 966 Bonus ------- None Cogmind --------- Core Integrity 0/250 Matter 300/300 Energy 95/100 System Corruption 0% Temperature Cool (0) Movement Flying (40) Location -10/Subcaves Parts ------- > --- POWER (1) -------- (None) > --- PROPULSION (2) --- Flight Unit > --- UTILITY (2) ------ Subdweller Optics > --- WEAPON (2) ------- Makeshift Spear > --- INVENTORY (5) ---- Light Angular Momentum Engine Improved Heat Sink Makeshift Light Armor Plating Subdweller Beam Cannon Datajack Peak State ------------ > --- POWER ------------ Light Ion Engine > --- PROPULSION ------- Light Treads Light Treads > --- UTILITY ---------- Huge Storage Unit Terrain Scanner > --- WEAPON ----------- Grenade Launcher Mining Laser > --- INVENTORY -------- Light Ion Engine Aluminum Leg Aluminum Leg Carbon-fiber Leg Wheel Compact Wheel Medium Battery Scrap Shield EM Pulse Gun EM Pulse Gun Light Assault Rifle Light Assault Rifle Datajack Mining Laser Mining Laser [Rating: 9] Favorites ----------- Power Light Ion Engine Engine Light Ion Engine Propulsion Light Treads Treads Light Treads Leg Aluminum Leg Flight Unit Flight Unit Utility Terrain Scanner Device Terrain Scanner Storage Huge Storage Unit Processor Targeting Computer Protection Makeshift Light Armor Plating Weapon Mining Laser Energy Gun EM Pulse Gun Ballistic Gun Assault Rifle Launcher Grenade Launcher Special Weapon Mining Laser Piercing Weapon Makeshift Spear Special Melee Weapon Datajack Build | -11 -10 -10 -10 ------- Run | Yrd Mat Min Sub Slots Evolved . | . . . . Power . | . . . . Propulsion . | . . . . Utility . | . . . . Weapon . | . . . . Parts Attached 21 | . 14 . 7 Power . | . . . . Engine . | . . . . Core . | . . . . Reactor . | . . . . Propulsion 8 | . 6 . 2 Treads 4 | . 4 . . Leg 3 | . 2 . 1 Wheel . | . . . . Hover . | . . . . Flight 1 | . . . 1 Utility 6 | . 3 . 3 Device 2 | . 1 . 1 Storage 1 | . 1 . . Processor 1 | . 1 . . Hackware . | . . . . Protection 2 | . . . 2 Artifact . | . . . . Weapon 7 | . 5 . 2 Energy Gun 2 | . 2 . . Energy Cannon . | . . . . Ballistic Gun . | . . . . Ballistic Cannon . | . . . . Launcher 1 | . 1 . . Special Weapon 1 | . 1 . . Impact Weapon . | . . . . Slashing Weapon . | . . . . Piercing Weapon 2 | . . . 2 Special Melee Weapon 1 | . 1 . . Unidentified Prototypes . | . . . . Parts Lost 7 | . 1 . 6 Power 1 | . . . 1 Propulsion 2 | . . . 2 Utility 1 | . . . 1 Weapon 3 | . 1 . 2 Highest Loss Streak 6 | . 1 . 6 To Critical Strikes . | . . . . Average Slot Usage (%) 89 | . 99 100 50 Engine 11 | . 14 14 3 Treads 20 | . 16 28 8 Leg 3 | . 11 . 1 Flight 1 | . . . 6 Device 11 | . 9 14 8 Storage 11 | . 14 14 3 Processor 1 | . 4 . . Energy Gun 5 | . 18 . . Launcher 8 | . 2 14 4 Special Weapon 9 | . 4 14 4 Piercing Weapon 1 | . . . 7 Peak Build Rating 9 | 6 8 8 9 Average Rating 7 | 6 6 8 6 On Entrance 7 | 6 6 8 8 Naked Turns 26 | . . . 26 Heaviest Build 88 | 11 88 88 88 Greatest Support 40 | 20 40 40 40 Greatest Overweight (x) 2 | . 2 2 2 Average Overweight (x) . | . . 2 . Largest Inventory Capacity 25 | 8 25 25 25 Average Capacity 19 | 8 16 25 10 Most Carried 16 | 6 10 13 16 Average Carried 10 | 6 7 12 7 Final Capacity 25 | 8 25 25 5 Final Carried 13 | 6 10 13 5 Class Distribution -------------------- 100% | Mutant Dominant Class ---------------- Mutant | -10/Materials Mutant | -10/Mines Mutant | -10/Subcaves Resources | -11 -10 -10 -10 ----------- Run | Yrd Mat Min Sub Matter Collected 442 | 199 119 69 55 Remotely . | . . . . Salvage Created 484 | . 416 . 68 Parts 28 | . 23 . 5 Haulers Intercepted . | . . . . Recyclers Shooed 1 | . 1 . . Parts Field Recycled . | . . . . Retrieved Matter . | . . . . Parts Self-Destructed 7 | . . . 7 Prevented . | . . . . Kills | -11 -10 -10 -10 ------- Run | Yrd Mat Min Sub Combat Hostiles Destroyed 9 | . 7 . 2 Melee 2 | . . . 2 Guns 3 | . 3 . . Cannons 1 | . 1 . . AOE 3 | . 3 . . Classes Destroyed 7 | . 6 . 1 Worker 1 | . 1 . . Builder 2 | . 2 . . Recycler 1 | . 1 . . Mechanic 1 | . 1 . . Swarmer 3 | . 2 . 1 Grunt 5 | . 5 . . Subdweller 1 | . . . 1 Best Kill Streak 3 | . 3 . 1 Combat Bots Only 3 | . 3 . 1 Max Kills in Single Turn 2 | . 2 . 1 Gunslinging . | . . . . Exploded 2 | . 2 . . Melee 1 | . . . 1 Uniques/NPCs Destroyed . | . . . . Combat | -11 -10 -10 -10 -------- Run | Yrd Mat Min Sub Hostile Shots Fired 114 | . 47 . 67 Missed 39 | . 11 . 28 Damage Taken 1188 | . 454 . 734 Core 270 | . 97 . 173 Absorbed by Shields . | . . . . Core Remaining (%) 100 | 100 . . . Volleys Fired 39 | . 37 2 . Largest 2 | . 2 1 . Hottest 140 | . 140 100 . Shots Fired 64 | . 62 2 . Gun 48 | . 48 . . Cannon . | . . . . Launcher 6 | . 6 . . Special 10 | . 8 2 . Kinetic . | . . . . Thermal 10 | . 8 2 . Explosive 6 | . 6 . . Electromagnetic 48 | . 48 . . Robot Hit Streak 8 | . 8 . . Robot Miss Streak 3 | . 3 . . Penetration Max . | . . . . Secondary Targets . | . . . . Shots Hit Robots 45 | . 42 . 3 Core Hits 24 | . 21 . 3 Critical Kills . | . . . . Critical Parts Destroyed . | . . . . Critical Strikes 2 | . 2 . . Corrupt 2 | . 2 . . Melee Attacks 13 | . . . 13 Impact . | . . . . Slashing . | . . . . Piercing 13 | . . . 13 Sneak Attacks . | . . . . Combat Hostiles . | . . . . Follow-up Attacks . | . . . . Damage Inflicted 883 | . 762 2 119 Guns 402 | . 402 . . Cannons . | . . . . Explosions 238 | . 238 . . Melee 115 | . . . 115 Ramming 8 | . 2 2 4 Kinetic . | . . . . Thermal 169 | . 169 . . Explosive 189 | . 189 . . Electromagnetic 402 | . 402 . . Impact . | . . . . Slashing . | . . . . Piercing 115 | . . . 115 Highest Corruption . | . . . . Average Corruption . | . . . . Corruption Purged . | . . . . Corruption Blocked . | . . . . Overload Shots . | . . . . Overflow Damage 6 | . 6 . . Projectiles . | . . . . Explosions 6 | . 6 . . Melee . | . . . . Knockbacks . | . . . . Impact . | . . . . Kinetic . | . . . . Secondary . | . . . . Self-Inflicted Damage 53 | . 52 . 1 Shots 1 | . 1 . . Rammed 3 | . . 1 2 Targets Rammed 4 | . 1 1 2 Kicked 1 | . 1 . . Crushed . | . . . . Highest Temperature 220 | . 220 40 . Average Temperature 84 | . 88 20 . Received Heat Transfer 246 | . 204 . 42 Siege Activations . | . . . . Robots Corrupted . | . . . . Combat Hostiles . | . . . . Parts Fried 3 | . 3 . . Impact Corruptions . | . . . . Robots Melted . | . . . . Combat Hostiles . | . . . . Parts Melted . | . . . . Heat Transferred 300 | . 300 . . Parts Sabotaged . | . . . . Parts Stolen . | . . . . Parts Stripped . | . . . . Power Chain Reactions 1 | . 1 . . Alert | -11 -10 -10 -10 ------- Run | Yrd Mat Min Sub Peak Influence 170 | . 170 56 . Initial 56 | . . 56 . Average 44 | . 89 20 . Maximum Alert Level . | . . . . Low Security (%) 100 | 100 100 100 . Level 1 . | . . . . Level 2 . | . . . . Level 3 . | . . . . Level 4 . | . . . . Level 5 . | . . . . High Security . | . . . . Max Security . | . . . . Squads Dispatched 1 | . . 1 . Investigation 1 | . . 1 . Extermination . | . . . . Reinforcement . | . . . . Assault . | . . . . Garrison . | . . . . Intercept . | . . . . Searches Triggered . | . . . . Construction Impeded . | . . . . Haulers Reinforced . | . . . . Active Scanning Responses . | . . . . Cargo Convoy Interrupts . | . . . . Stealth | -11 -10 -10 -10 --------- Run | Yrd Mat Min Sub Distress Signals . | . . . . Communications Jammed . | . . . . Distress Signals . | . . . . Times Spotted 28 | . 11 . 17 Peak Tracking Total 6 | . 3 . 6 Tactical Retreats 5 | . 3 . 2 Traps | -11 -10 -10 -10 ------- Run | Yrd Mat Min Sub Traps Triggered . | . . . . Indirectly . | . . . . Trap Hack Attempts . | . . . . Triggered . | . . . . Disarmed . | . . . . Reprogrammed . | . . . . Reused . | . . . . Traps Extracted . | . . . . Installed . | . . . . Triggered . | . . . . Machines | -11 -10 -10 -10 ---------- Run | Yrd Mat Min Sub Machines Disabled 1 | . 1 . . Max in Single Turn 1 | . 1 . . Machines Repaired . | . . . . Machines Dismantled . | . . . . Machines Sabotaged . | . . . . Overloaded Fab Kills . | . . . . Hacking | -11 -10 -10 -10 --------- Run | Yrd Mat Min Sub Machines Accessed 3 | . 1 1 1 Terminals 2 | . 1 1 . Fabricators . | . . . . Repair Stations . | . . . . Recycling Units . | . . . . Scanalyzers . | . . . . Garrison Access . | . . . . Total Hacks 9 | . 2 4 3 Successful 6 | . 1 2 3 Failed 3 | . 1 2 . Catastrophic . | . . . . Database Lockouts . | . . . . Manual 7 | . 1 3 3 Terminals 6 | . 2 4 . Fabricators . | . . . . Repair Stations . | . . . . Recycling Units . | . . . . Scanalyzers . | . . . . Garrison Access . | . . . . Terminal Hacks 5 | . 1 1 3 Record 3 | . . . 3 Hauler Manifests 1 | . 1 . . Zone Layout 1 | . . 1 . Fabricator Hacks . | . . . . Repair Station Hacks . | . . . . Recycling Unit Hacks . | . . . . Scanalyzer . | . . . . Garrison Access Hacks . | . . . . Unauthorized Hacks 1 | . . 1 . Terminals 1 | . . 1 . Botnet 1 | . . 1 . Fabricators . | . . . . Repair Stations . | . . . . Recycling Units . | . . . . Scanalyzers . | . . . . Garrison Access . | . . . . Data Cores Recovered . | . . . . Used . | . . . . Hacking Detections 2 | . 1 1 . Full Trace Events 1 | . . 1 . Feedback Events . | . . . . Feedback Blocked . | . . . . Robot Schematics Acquired . | . . . . Robots Built . | . . . . Authchips . | . . . . Time . | . . . . Total Robot Build Rating . | . . . . Part Schematics Acquired . | . . . . Parts Built . | . . . . Authchips . | . . . . Time . | . . . . Total Part Build Rating . | . . . . Parts Repaired . | . . . . Time . | . . . . Parts Recycled . | . . . . Recycled Matter . | . . . . Retrieved Matter . | . . . . Retrieved Components . | . . . . Parts Scanalyzed . | . . . . Part Schematics Acquired . | . . . . Parts Damaged . | . . . . Bothacking | -11 -10 -10 -10 ------------ Run | Yrd Mat Min Sub Used RIF Installer . | . . . . Robots Hacked . | . . . . Non-combat . | . . . . Combat . | . . . . Robot Hacks Applied . | . . . . Relay Couplers Released . | . . . . Fabnet Peak Effective % . | . . . . Robots Rewired . | . . . . Allies Hacked . | . . . . Hacks Repelled . | . . . . Allies | -11 -10 -10 -10 -------- Run | Yrd Mat Min Sub Total Allies . | . . . . Largest Group . | . . . . Highest-Rated Group . | . . . . Highest-Rated Ally . | . . . . Total Orders . | . . . . Ally Attacks . | . . . . Total Damage . | . . . . Kills . | . . . . Allies Corrupted . | . . . . Allies Melted . | . . . . Intel | -11 -10 -10 -10 ------- Run | Yrd Mat Min Sub Robot Analysis Total . | . . . . Derelict Logs Recovered 2 | . . 2 . Drone Launches . | . . . . Drone Recoveries . | . . . . Exploration | -11 -10 -10 -10 ------------- Run | Yrd Mat Min Sub Turns Passed 2211 | 29 634 1115 433 Spaces Moved 1200 | 25 251 344 580 Core 142 | . . . 142 Treads 499 | . 120 344 35 Legs 167 | 25 131 . 11 Wheels . | . . . . Hover . | . . . . Flight 392 | . . . 392 Fastest Speed 40 | 120 120 320 40 Average Speed 165 | 120 188 320 66 Slowest Speed 320 | 120 320 320 320 Overloaded Moves . | . . . . Propulsion Burnouts . | . . . . Robots Hopped . | . . . . Cave-ins Triggered . | . . . . Exploration Rate (%) 39 | 3 36 74 43 Regions Visited 3 Branch Regions 2 Pre-discovered Areas 1 | . . 1 . Known Exits Taken . | . . . . Unknown Exits Taken 3 | 1 1 1 . Scrap Searched 3 | . . 1 2 Spaces Dug 2 | . . 2 . Terrain Destroyed 49 | . 47 2 . Melee . | . . . . Projectile 4 | . 2 2 . AOE 45 | . 45 . . Terrain Rammed . | . . . . Walls Destroyed . | . . . . Machines Disabled . | . . . . Actions | -11 -10 -10 -10 --------- Run | Yrd Mat Min Sub Total 1327 | 24 331 352 620 Wait 22 | . 19 3 . Move 1197 | 24 250 343 580 Hop . | . . . . Pick Up 21 | . 8 3 10 Fast Attach 2 | . . . 2 Attach 7 | . 3 . 4 Detach 1 | . . . 1 Swap 12 | . 11 . 1 Drop 9 | . 2 . 7 Fire 39 | . 37 2 . Melee 13 | . . . 13 Ram 2 | . . . 2 Kick 1 | . 1 . . Crush 1 | . . 1 . Escape Stasis . | . . . . Rewire . | . . . . Trap . | . . . . Miscellaneous . | . . . . Route ------- -11/Scrapyard -10/Materials (discovered 2 exits: [*Mat] / *Min) -10/Mines (discovered 2 exits: [*Mat] / *Sub) -10/Subcaves History --------- Turn | Location | Event 1 | -11/Scrapyard | Discovered new exit (range 3) 30 | -11/Scrapyard | Entered Materials 311 | -10/Materials | Build established: Mutant 338 | -10/Materials | Discovered new exit (range 13) 340 | -10/Materials | Discovered new exit (range 14) 664 | -10/Materials | Entered Mines 696 | -10/Mines | Learned location of Zion (-7) 754 | -10/Mines | Discovered new exit (range 6) 767 | -10/Mines | Met a Derelict bent on vengeance 1013 | -10/Mines | Learned Materials security intel 1695 | -10/Mines | Discovered new exit (range 12) 1779 | -10/Mines | Entered Subcaves 1875 | -10/Subcaves | Ambushed by swarm of Subdwellers 1905 | -10/Subcaves | Core integrity fell below 50% 1921 | -10/Subcaves | Lost 4 allies 1955 | -10/Subcaves | Shifting Twisted Machinery released Mak. Spear 1956 | -10/Subcaves | Shifting Twisted Machinery released Mak. Light Armor Plating 1969 | -10/Subcaves | Lost 6 parts (1p2n1u2w) 2025 | -10/Subcaves | Core integrity fell below 20% 2032 | -10/Subcaves | A swath of the cavern ceiling suddenly collapsed 2071 | -10/Subcaves | Visited Clippyterm 2072 | -10/Subcaves | Learned Factory stockpile data 2107 | -10/Subcaves | Shifting Twisted Machinery released Sub. Monowheel 2108 | -10/Subcaves | Shifting Twisted Machinery released Mak. Light Armor Plating 2109 | -10/Subcaves | Shifting Twisted Machinery released Mak. Light Armor Plating 2212 | -10/Subcaves | Destroyed by 5E-BOQ(R) with Subdweller Machine Gun Last Messages --------------- 02093_ Acquired Sub. Optics. 02095_ Acquired Scrap Shield Fragment. 02096_ Dropped Scrap Shield Fragment. 02097_ Acquired Scrap Shield Fragment. 02099_ Searching scrap... 02099_ Found Piercing Trap. 02099_ Found 35 Matter. 02099_ Acquired 35 matter. 02100_ Searching scrap... 02100_ Found Sub. Optics. 02100_ Found Sub. Beam Cannon. 02100_ Found 65 Matter. 02101_ Dropped Scrap Shield Fragment. 02101_ Acquired Sub. Beam Cannon. Sub. Monowheel falls loose from the Twisted Machinery. Mak. Light Armor Plating falls loose from the Twisted Machinery. 02110_ Dropped Lgt. Treads. 02111_ Acquired Mak. Light Armor Plating. Map ----- +----------------------------------------------------+ | ????????????????????????????????????????????## | | ?????????????????????????????????????????????## # | | ??????????????????????????????????????????????#### | | ?????????????????????????????????????????????????? | | ????????????????????????????????????????????#?#### | | ??????????????????????????????????????????## ?? | | ??????????????????????????????????????????# ???# | | ???????????????????????????????####???????# #????# | | ??????????????????????????????""" "??????# #????? | | ??????????????????????????????? ??????# #????? | | ??????????????????????????????? #####?# ##???# | | ???????????????????????????????? #?# ##### | | ?????????????????????????????? ### | | ???????????????????????????????" | | ??????????????????????????????" # # | | ????????????????????????????????????## ## | | ?????????????????????????????????????# #?# | | ??????????? ?????????????####?###???## ### | | ???????????? ???????????## ### ##### ## | | ????????????? ??????????# | | ????????????? ????????### | | ?????????????## ???????# # ## | | ?????????????# ###?#### ####### ##### | | ?????????????# ## "# ###?????# #???# | | ?????????????# """ R# ####???????# #???# | | ?????????????# """""" "R@ ##??????????## ##???## | | ?????????????# " " ##????????????# #?????# | | ?????????????# "" #?????????????# ##?????? | | ?????????????##""" "###?????????????###??????? | | ??????????????###########????????????????????????? | | ?????????????????????????????????????????????????? | | ?????????????????????????????????????????????????? | | ?????????????????????????????????????????????????? | | ?????????????????????????????????????????????????? | | ?????????????????????????????????????????????????? | | ?????????????????????????????????????????????????? | | ?????????????????????????????????????????????????? | | ?????????????????????????????????????????????????? | | ?????????????????????????????????????????????????? | | ?????????????????????????????????????????????????? | | ?????????????????????????????????????????????????? | | ?????????????????????????????????????????????????? | | ?????????????????????????????????????????????????? | | ?????????????????????????????????????????????????? | | | | | | | | | | | | | +----------------------------------------------------+ Best States ------------- Heat Dissipation 25 Energy Generation 10 Energy Capacity 125 Matter Stores 300 Matter Capacity 300 Sight Range 21 Terrain Scan Range 14 Terrain Scan Density 10 Armor Coverage 800 Evasion (%) 62 Targeting Accuracy 5 Recoil Reduction 2 Item Schematics ----------------- None Robot Schematics ------------------ None Fabricated ------------ Nothing Alien Tech Used ----------------- None Achievements -------------- None Challenges ------------ None Game ------ Seed DataArcMachine Manual? 0 Play Time 00:37:54 Cumulative 101.5 hours Start 2024.09.24 @ 22:31:10 End 2024.09.24 @ 23:19:15 Sessions 1 Manual Loads 0 Difficulty Rogue Special Mode None Game No. 71 Rogue 71 Adventurer 0 Explorer 0 Win Type - Total 2 Types 2/0/0/0/0/0/0/0/0 Lore% 23 Gallery% 44 Achievement% 32 Wizard Run 0 Options --------- Layout 1 ASCII 0 Keyboard 0 Movement Mouse Keybinds 0 Fullscreen 2 Font 24/Smallcaps Map View 50x35 Zoom Use 0% Tactical HUD 1 Map Filters NONE Filters NONE Steam 1 RUN: 783f1ff9-8d97-4211-8ca1-e94279c161c1